[Event "December 5 Early 2023"]
[Site "https://www.chess.com"]
[Date "2023.12.05"]
[Round "5"]
[White "Derjabin, Ilja"]
[Black "Skibbe, Willi"]
[Result "1-0"]
[Board "170"]
[TimeControl "180+1"]
[WhiteFideId "14104768"]
[BlackFideId "4682190"]
[WhiteElo "2515"]
[BlackElo "2309"]
[WhiteTeam "UKR"]
[BlackTeam "GER"]
[WhiteClock "0:00:01"]
[BlackClock "0:00:00"]

1. d4 {[%clk 0:03:00]}  d5 {[%clk 0:02:58]} 2. c4 {[%clk 0:03:00]}  e6 {[%clk 0:02:57]} 3. Nc3 {[%clk 0:03:00]}  Nf6 {[%clk 0:02:56]} 4. cxd5 {[%clk 0:02:59]}  exd5 {[%clk 0:02:56]} 5. Bg5 {[%clk 0:02:59]}  Be7 {[%clk 0:02:54]} 6. e3 {[%clk 0:02:59]}  h6 {[%clk 0:02:54]} 7. Bh4 {[%clk 0:02:55]}  O-O {[%clk 0:02:53]} 8. Bd3 {[%clk 0:02:54]}  Re8 {[%clk 0:02:53]} 9. Qc2 {[%clk 0:02:54]}  c6 {[%clk 0:02:52]} 10. Nge2 {[%clk 0:02:53]}  Nbd7 {[%clk 0:02:51]} 11. O-O {[%clk 0:02:53]}  Nb6 {[%clk 0:02:50]} 12. Rae1 {[%clk 0:02:50]}  Nh5 {[%clk 0:02:45]} 13. Bxe7 {[%clk 0:02:49]}  Qxe7 {[%clk 0:02:42]} 14. h3 {[%clk 0:02:47]}  Bd7 {[%clk 0:02:33]} 15. b3 {[%clk 0:02:45]}  Nc8 {[%clk 0:02:22]} 16. g4 {[%clk 0:02:44]}  Nf6 {[%clk 0:02:22]} 17. Ng3 {[%clk 0:02:43]}  Nd6 {[%clk 0:02:21]} 18. f3 {[%clk 0:02:43]}  Nb5 {[%clk 0:01:36]} 19. Nd1 {[%clk 0:02:33]}  Qd6 {[%clk 0:01:27]} 20. Qg2 {[%clk 0:02:30]}  Qb4 {[%clk 0:01:17]} 21. Qf2 {[%clk 0:02:25]}  a5 {[%clk 0:01:13]} 22. h4 {[%clk 0:02:16]}  a4 {[%clk 0:01:10]} 23. g5 {[%clk 0:02:16]}  hxg5 {[%clk 0:01:09]} 24. hxg5 {[%clk 0:02:17]}  Nh7 {[%clk 0:01:06]} 25. bxa4 {[%clk 0:01:16]}  Rxa4 {[%clk 0:01:02]} 26. Bxh7+ {[%clk 0:00:51]}  Kxh7 {[%clk 0:01:01]} 27. Qh2+ {[%clk 0:00:51]}  Kg8 {[%clk 0:01:01]} 28. Kg2 {[%clk 0:00:51]}  Rxa2+ {[%clk 0:00:59]} 29. Nf2 {[%clk 0:00:50]}  Nxd4 {[%clk 0:00:34]} 30. Rh1 {[%clk 0:00:47]}  Kf8 {[%clk 0:00:16]} 31. Qh8+ {[%clk 0:00:45]}  Ke7 {[%clk 0:00:16]} 32. exd4+ {[%clk 0:00:45]}  Kd8 {[%clk 0:00:15]} 33. Rxe8+ {[%clk 0:00:40]}  Bxe8 {[%clk 0:00:16]} 34. Qxg7 {[%clk 0:00:23]}  Qd2 {[%clk 0:00:16]} 35. Rf1 {[%clk 0:00:19]}  Kc7 {[%clk 0:00:14]} 36. Qe5+ {[%clk 0:00:18]}  Kd8 {[%clk 0:00:14]} 37. Nf5 {[%clk 0:00:17]}  Bd7 {[%clk 0:00:14]} 38. Qb8+ {[%clk 0:00:08]}  Bc8 {[%clk 0:00:13]} 39. Qd6+ {[%clk 0:00:07]}  Bd7 {[%clk 0:00:13]} 40. Nh6 {[%clk 0:00:03]}  Qxg5+ {[%clk 0:00:12]} 41. Ng4 {[%clk 0:00:03]}  Kc8 {[%clk 0:00:11]} 42. Rh1 {[%clk 0:00:01]}  Qg7 {[%clk 0:00:08]} 43. Rh4 {[%clk 0:00:01]}  f5 {[%clk 0:00:00]} 44. Qe5 {[%clk 0:00:01]} 1-0

[Event "December 5 Early 2023"]
[Site "https://www.chess.com"]
[Date "2023.12.05"]
[Round "5"]
[White "Franchini, Gabriele"]
[Black "Gutierrez Olivares, Daniel"]
[Result "0-1"]
[Board "172"]
[TimeControl "180+1"]
[WhiteFideId "806790"]
[BlackFideId "2264005"]
[WhiteElo "2306"]
[BlackElo "2509"]
[WhiteTeam "ITA"]
[BlackTeam "ESP"]
[WhiteClock "0:00:00"]
[BlackClock "0:00:03"]

1. e4 {[%clk 0:03:00]}  e6 {[%clk 0:02:59]} 2. d4 {[%clk 0:03:00]}  d5 {[%clk 0:03:00]} 3. Bd3 {[%clk 0:03:01]}  Nc6 {[%clk 0:02:58]} 4. c3 {[%clk 0:02:58]}  e5 {[%clk 0:02:56]} 5. Nf3 {[%clk 0:02:58]}  Bg4 {[%clk 0:02:52]} 6. Qa4 {[%clk 0:02:55]}  Bxf3 {[%clk 0:02:44]} 7. gxf3 {[%clk 0:02:56]}  exd4 {[%clk 0:02:34]} 8. Ba6 {[%clk 0:02:42]}  Qc8 {[%clk 0:00:40]} 9. exd5 {[%clk 0:02:33]}  bxa6 {[%clk 0:00:36]} 10. Qxc6+ {[%clk 0:02:31]}  Kd8 {[%clk 0:00:36]} 11. Bf4 {[%clk 0:02:01]}  Rb8 {[%clk 0:00:30]} 12. Nd2 {[%clk 0:01:44]}  Rb6 {[%clk 0:00:25]} 13. Qc4 {[%clk 0:01:43]}  dxc3 {[%clk 0:00:25]} 14. bxc3 {[%clk 0:01:37]}  Nf6 {[%clk 0:00:13]} 15. O-O {[%clk 0:01:36]}  Bd6 {[%clk 0:00:12]} 16. Bxd6 {[%clk 0:01:29]}  Rxd6 {[%clk 0:00:10]} 17. Rfe1 {[%clk 0:01:10]}  Qf5 {[%clk 0:00:08]} 18. Rab1 {[%clk 0:00:59]}  Rb6 {[%clk 0:00:02]} 19. Rxb6 {[%clk 0:00:56]}  axb6 {[%clk 0:00:03]} 20. Ne4 {[%clk 0:00:31]}  Qxd5 {[%clk 0:00:02]} 21. Qxd5+ {[%clk 0:00:27]}  Nxd5 {[%clk 0:00:03]} 22. Rd1 {[%clk 0:00:27]}  c6 {[%clk 0:00:04]} 23. c4 {[%clk 0:00:28]}  Kc7 {[%clk 0:00:03]} 24. cxd5 {[%clk 0:00:28]}  c5 {[%clk 0:00:04]} 25. Ng5 {[%clk 0:00:23]}  f6 {[%clk 0:00:03]} 26. Ne6+ {[%clk 0:00:23]}  Kd6 {[%clk 0:00:03]} 27. Kf1 {[%clk 0:00:22]}  g6 {[%clk 0:00:03]} 28. Nf4 {[%clk 0:00:15]}  Re8 {[%clk 0:00:02]} 29. Re1 {[%clk 0:00:12]}  Re5 {[%clk 0:00:03]} 30. Rxe5 {[%clk 0:00:10]}  fxe5 {[%clk 0:00:04]} 31. Nh3 {[%clk 0:00:09]}  Kxd5 {[%clk 0:00:04]} 32. Ke2 {[%clk 0:00:09]}  h6 {[%clk 0:00:05]} 33. Kd2 {[%clk 0:00:08]}  b5 {[%clk 0:00:06]} 34. Kc3 {[%clk 0:00:08]}  a5 {[%clk 0:00:06]} 35. Ng1 {[%clk 0:00:08]}  b4+ {[%clk 0:00:05]} 36. Kc2 {[%clk 0:00:08]}  e4 {[%clk 0:00:03]} 37. fxe4+ {[%clk 0:00:05]}  Kxe4 {[%clk 0:00:04]} 38. Nh3 {[%clk 0:00:04]}  Kf3 {[%clk 0:00:04]} 39. Kb3 {[%clk 0:00:00]}  g5 {[%clk 0:00:03]} 0-1

[Event "December 5 Early 2023"]
[Site "https://www.chess.com"]
[Date "2023.12.05"]
[Round "5"]
[White "Lopez Del Alamo, Antonio"]
[Black "Budrewicz, Krzysztof"]
[Result "0-1"]
[Board "174"]
[TimeControl "180+1"]
[WhiteFideId "2227339"]
[BlackFideId "1127950"]
[WhiteElo "2302"]
[BlackElo "2500"]
[WhiteTeam "ESP"]
[BlackTeam "POL"]
[WhiteClock "0:01:19"]
[BlackClock "0:01:47"]

1. e4 {[%clk 0:03:00]}  g6 {[%clk 0:02:53]} 2. d4 {[%clk 0:02:59]}  Bg7 {[%clk 0:02:54]} 3. Nc3 {[%clk 0:02:59]}  c5 {[%clk 0:02:55]} 4. Nf3 {[%clk 0:02:58]}  Qa5 {[%clk 0:02:49]} 5. Be2 {[%clk 0:02:50]}  Nc6 {[%clk 0:02:49]} 6. d5 {[%clk 0:02:47]}  Nd4 {[%clk 0:02:48]} 7. Bd2 {[%clk 0:02:45]}  Nxf3+ {[%clk 0:02:39]} 8. Bxf3 {[%clk 0:02:44]}  d6 {[%clk 0:02:38]} 9. O-O {[%clk 0:02:39]}  Nf6 {[%clk 0:02:38]} 10. a4 {[%clk 0:02:25]}  a6 {[%clk 0:02:33]} 11. Qe2 {[%clk 0:02:08]}  Nd7 {[%clk 0:02:31]} 12. g3 {[%clk 0:02:05]}  O-O {[%clk 0:02:31]} 13. Bg2 {[%clk 0:02:01]}  Ne5 {[%clk 0:02:27]} 14. h3 {[%clk 0:02:00]}  Qb4 {[%clk 0:02:20]} 15. Rab1 {[%clk 0:01:54]}  Nc4 {[%clk 0:02:09]} 16. Be1 {[%clk 0:01:46]}  b5 {[%clk 0:02:09]} 17. Nxb5 {[%clk 0:01:41]}  Qxa4 {[%clk 0:01:57]} 18. Nc7 {[%clk 0:01:39]}  Ra7 {[%clk 0:01:56]} 19. b3 {[%clk 0:01:36]}  Qd7 {[%clk 0:01:54]} 20. Qxc4 {[%clk 0:01:29]}  Qxc7 {[%clk 0:01:54]} 21. Ra1 {[%clk 0:01:19]}  Bxa1 {[%clk 0:01:47]} 0-1

[Event "December 5 Early 2023"]
[Site "https://www.chess.com"]
[Date "2023.12.05"]
[Round "5"]
[White "Tikhonov, Viacheslav"]
[Black "Rose, Felix"]
[Result "1-0"]
[Board "175"]
[TimeControl "180+1"]
[WhiteFideId "44196407"]
[BlackFideId "5105722"]
[WhiteElo "2487"]
[BlackElo "2303"]
[WhiteTeam "RUS"]
[BlackTeam "MEX"]
[WhiteClock "0:00:06"]
[BlackClock "0:00:37"]

1. e4 {[%clk 0:02:57]}  c6 {[%clk 0:02:59]} 2. d4 {[%clk 0:02:56]}  d5 {[%clk 0:02:59]} 3. Nc3 {[%clk 0:02:57]}  dxe4 {[%clk 0:02:59]} 4. Nxe4 {[%clk 0:02:58]}  Nf6 {[%clk 0:03:00]} 5. Nxf6+ {[%clk 0:02:59]}  exf6 {[%clk 0:03:01]} 6. Bc4 {[%clk 0:02:59]}  Bd6 {[%clk 0:03:01]} 7. Qe2+ {[%clk 0:03:00]}  Qe7 {[%clk 0:03:00]} 8. Qxe7+ {[%clk 0:03:01]}  Kxe7 {[%clk 0:03:01]} 9. Ne2 {[%clk 0:03:01]}  Be6 {[%clk 0:03:01]} 10. Bd3 {[%clk 0:03:02]}  Nd7 {[%clk 0:03:00]} 11. Bd2 {[%clk 0:03:02]}  Rhe8 {[%clk 0:03:00]} 12. b3 {[%clk 0:02:57]}  h6 {[%clk 0:02:53]} 13. O-O-O {[%clk 0:02:55]}  a5 {[%clk 0:02:51]} 14. a4 {[%clk 0:02:49]}  Kf8 {[%clk 0:02:46]} 15. Kb2 {[%clk 0:02:48]}  Bd5 {[%clk 0:02:41]} 16. f3 {[%clk 0:02:44]}  c5 {[%clk 0:02:33]} 17. Nc3 {[%clk 0:02:34]}  Nb6 {[%clk 0:02:14]} 18. Bb5 {[%clk 0:02:21]}  Red8 {[%clk 0:02:02]} 19. Nxd5 {[%clk 0:01:33]}  Nxd5 {[%clk 0:02:03]} 20. c4 {[%clk 0:01:34]}  Nf4 {[%clk 0:01:39]} 21. Bxf4 {[%clk 0:01:17]}  Bxf4 {[%clk 0:01:38]} 22. dxc5 {[%clk 0:01:08]}  Rxd1 {[%clk 0:01:34]} 23. Rxd1 {[%clk 0:01:08]}  Rc8 {[%clk 0:01:31]} 24. Rd7 {[%clk 0:01:00]}  Bxh2 {[%clk 0:01:25]} 25. Rxb7 {[%clk 0:00:56]}  Rxc5 {[%clk 0:01:21]} 26. Ra7 {[%clk 0:00:52]}  Bc7 {[%clk 0:01:12]} 27. Kc3 {[%clk 0:00:36]}  g5 {[%clk 0:00:57]} 28. Kd4 {[%clk 0:00:08]}  Bb6 {[%clk 0:00:57]} 29. Rb7 {[%clk 0:00:08]}  Rc6+ {[%clk 0:00:57]} 30. Kd3 {[%clk 0:00:02]}  Rd6+ {[%clk 0:00:56]} 31. Kc3 {[%clk 0:00:02]}  Bd4+ {[%clk 0:00:56]} 32. Kc2 {[%clk 0:00:02]}  Be3 {[%clk 0:00:55]} 33. Rc7 {[%clk 0:00:01]}  Rd2+ {[%clk 0:00:54]} 34. Kc3 {[%clk 0:00:02]}  Rxg2 {[%clk 0:00:54]} 35. c5 {[%clk 0:00:03]}  Bd2+ {[%clk 0:00:52]} 36. Kc4 {[%clk 0:00:02]}  Bb4 {[%clk 0:00:52]} 37. Kd5 {[%clk 0:00:03]}  Rd2+ {[%clk 0:00:51]} 38. Kc6 {[%clk 0:00:03]}  h5 {[%clk 0:00:47]} 39. Bc4 {[%clk 0:00:03]}  h4 {[%clk 0:00:44]} 40. Rxf7+ {[%clk 0:00:04]}  Ke8 {[%clk 0:00:45]} 41. Rxf6 {[%clk 0:00:04]}  h3 {[%clk 0:00:43]} 42. Rh6 {[%clk 0:00:04]}  h2 {[%clk 0:00:44]} 43. Kb6 {[%clk 0:00:03]}  Rf2 {[%clk 0:00:42]} 44. c6 {[%clk 0:00:02]}  Rxf3 {[%clk 0:00:41]} 45. c7 {[%clk 0:00:02]}  Rf6+ {[%clk 0:00:39]} 46. Rxf6 {[%clk 0:00:03]}  h1=Q {[%clk 0:00:39]} 47. c8=Q+ {[%clk 0:00:03]}  Ke7 {[%clk 0:00:40]} 48. Re6+ {[%clk 0:00:03]}  Kf7 {[%clk 0:00:40]} 49. Qe8+ {[%clk 0:00:04]}  Kg7 {[%clk 0:00:39]} 50. Rg6+ {[%clk 0:00:05]}  Kh7 {[%clk 0:00:37]} 51. Qg8# {[%clk 0:00:06]} 1-0

[Event "December 5 Early 2023"]
[Site "https://www.chess.com"]
[Date "2023.12.05"]
[Round "5"]
[White "Iljin, Timofey"]
[Black "Mejia, Cherry Ann"]
[Result "1-0"]
[Board "176"]
[TimeControl "180+1"]
[WhiteFideId "14110180"]
[BlackFideId "5206880"]
[WhiteElo "2465"]
[BlackElo "2301"]
[WhiteTeam "UKR"]
[BlackTeam "PHI"]
[WhiteClock "0:00:55"]
[BlackClock "0:00:23"]

1. e4 {[%clk 0:02:56]}  c5 {[%clk 0:02:59]} 2. c3 {[%clk 0:02:56]}  Nf6 {[%clk 0:02:58]} 3. e5 {[%clk 0:02:55]}  Nd5 {[%clk 0:02:57]} 4. d4 {[%clk 0:02:56]}  cxd4 {[%clk 0:02:52]} 5. Nf3 {[%clk 0:02:56]}  Nc6 {[%clk 0:02:46]} 6. cxd4 {[%clk 0:02:56]}  d6 {[%clk 0:02:45]} 7. Bc4 {[%clk 0:02:56]}  dxe5 {[%clk 0:02:40]} 8. dxe5 {[%clk 0:02:56]}  Nb6 {[%clk 0:02:40]} 9. Qxd8+ {[%clk 0:02:37]}  Nxd8 {[%clk 0:02:39]} 10. Bb3 {[%clk 0:02:38]}  e6 {[%clk 0:02:29]} 11. O-O {[%clk 0:02:37]}  Be7 {[%clk 0:02:26]} 12. Nc3 {[%clk 0:02:37]}  O-O {[%clk 0:02:25]} 13. Be3 {[%clk 0:02:32]}  Nd7 {[%clk 0:02:14]} 14. Rfd1 {[%clk 0:02:18]}  Nc6 {[%clk 0:02:12]} 15. Nb5 {[%clk 0:02:14]}  a6 {[%clk 0:02:04]} 16. Nc7 {[%clk 0:02:08]}  Rb8 {[%clk 0:02:03]} 17. Nxe6 {[%clk 0:02:07]}  Re8 {[%clk 0:01:45]} 18. Nc7 {[%clk 0:02:03]}  Rd8 {[%clk 0:01:44]} 19. e6 {[%clk 0:02:00]}  fxe6 {[%clk 0:01:41]} 20. Nxe6 {[%clk 0:01:58]}  Na5 {[%clk 0:01:35]} 21. Nxd8+ {[%clk 0:01:44]}  Nxb3 {[%clk 0:01:34]} 22. axb3 {[%clk 0:01:45]}  Bxd8 {[%clk 0:01:34]} 23. Ne5 {[%clk 0:01:46]}  Nxe5 {[%clk 0:01:20]} 24. Rxd8+ {[%clk 0:01:47]}  Kf7 {[%clk 0:01:20]} 25. Bf4 {[%clk 0:01:23]}  Nc6 {[%clk 0:01:11]} 26. Rh8 {[%clk 0:01:09]}  Ra8 {[%clk 0:01:07]} 27. Re1 {[%clk 0:01:09]}  Ne7 {[%clk 0:00:56]} 28. Bg5 {[%clk 0:00:59]}  Nf5 {[%clk 0:00:44]} 29. Ree8 {[%clk 0:00:57]}  Nd6 {[%clk 0:00:42]} 30. Rd8 {[%clk 0:00:57]}  Ke6 {[%clk 0:00:23]} 31. Bf4 {[%clk 0:00:55]} 1-0

[Event "December 5 Early 2023"]
[Site "https://www.chess.com"]
[Date "2023.12.05"]
[Round "5"]
[White "Rodriguez Santiago, Jaime"]
[Black "Eilers, Stefan"]
[Result "0-1"]
[Board "182"]
[TimeControl "180+1"]
[WhiteFideId "3100898"]
[BlackFideId "4609565"]
[WhiteElo "2264"]
[BlackElo "2432"]
[WhiteTeam "PUR"]
[BlackTeam "GER"]
[WhiteClock "0:01:38"]
[BlackClock "0:01:16"]

1. d4 {[%clk 0:03:00]}  d5 {[%clk 0:02:59]} 2. c4 {[%clk 0:03:01]}  e6 {[%clk 0:02:59]} 3. Nc3 {[%clk 0:03:01]}  c5 {[%clk 0:03:00]} 4. cxd5 {[%clk 0:02:58]}  cxd4 {[%clk 0:03:00]} 5. Qa4+ {[%clk 0:02:58]}  Bd7 {[%clk 0:03:00]} 6. Qxd4 {[%clk 0:02:58]}  exd5 {[%clk 0:03:00]} 7. Nxd5 {[%clk 0:02:50]}  Nc6 {[%clk 0:02:59]} 8. Qd1 {[%clk 0:02:48]}  Be6 {[%clk 0:02:54]} 9. e4 {[%clk 0:02:43]}  Nf6 {[%clk 0:02:49]} 10. Nc3 {[%clk 0:02:31]}  Qxd1+ {[%clk 0:02:45]} 11. Kxd1 {[%clk 0:02:30]}  O-O-O+ {[%clk 0:02:45]} 12. Ke1 {[%clk 0:02:27]}  Nb4 {[%clk 0:02:42]} 13. Rb1 {[%clk 0:02:21]}  Nc2+ {[%clk 0:02:38]} 14. Ke2 {[%clk 0:02:19]}  Bc4+ {[%clk 0:02:36]} 15. Kf3 {[%clk 0:02:17]}  Bxf1 {[%clk 0:02:33]} 16. Nh3 {[%clk 0:02:11]}  Nd4+ {[%clk 0:02:19]} 17. Kg3 {[%clk 0:02:08]}  Bd3 {[%clk 0:02:19]} 18. Bg5 {[%clk 0:02:04]}  Bxb1 {[%clk 0:02:11]} 19. Rxb1 {[%clk 0:02:03]}  Bd6+ {[%clk 0:01:57]} 20. Bf4 {[%clk 0:01:59]}  Nh5+ {[%clk 0:01:56]} 21. Kg4 {[%clk 0:01:59]}  Nxf4 {[%clk 0:01:56]} 22. Nxf4 {[%clk 0:02:00]}  Bxf4 {[%clk 0:01:54]} 23. Kxf4 {[%clk 0:01:59]}  Ne6+ {[%clk 0:01:55]} 24. Ke3 {[%clk 0:01:59]}  Nc7 {[%clk 0:01:50]} 25. f3 {[%clk 0:01:58]}  Kb8 {[%clk 0:01:49]} 26. Rc1 {[%clk 0:01:58]}  Rhe8 {[%clk 0:01:47]} 27. Kf4 {[%clk 0:01:57]}  Ne6+ {[%clk 0:01:45]} 28. Ke3 {[%clk 0:01:56]}  Rc8 {[%clk 0:01:44]} 29. Rd1 {[%clk 0:01:55]}  Red8 {[%clk 0:01:43]} 30. Rf1 {[%clk 0:01:51]}  Rc6 {[%clk 0:01:31]} 31. Rf2 {[%clk 0:01:50]}  Rcd6 {[%clk 0:01:29]} 32. Nd5 {[%clk 0:01:49]}  Nc7 {[%clk 0:01:27]} 33. Nc3 {[%clk 0:01:42]}  Rd3+ {[%clk 0:01:25]} 34. Kf4 {[%clk 0:01:38]}  Rd2 {[%clk 0:01:16]} 0-1

[Event "December 5 Early 2023"]
[Site "https://www.chess.com"]
[Date "2023.12.05"]
[Round "5"]
[White "Topalov, Aleksandar"]
[Black "Vifleemskaia, Svetlana"]
[Result "1-0"]
[Board "183"]
[TimeControl "180+1"]
[WhiteFideId "925659"]
[BlackFideId "4129490"]
[WhiteElo "2430"]
[BlackElo "2261"]
[WhiteTeam "SRB"]
[BlackTeam "RUS"]
[WhiteClock "0:01:23"]
[BlackClock "0:00:14"]

1. b3 {[%clk 0:03:00]}  e5 {[%clk 0:02:56]} 2. Bb2 {[%clk 0:03:01]}  Nc6 {[%clk 0:02:56]} 3. e3 {[%clk 0:02:58]}  Nf6 {[%clk 0:02:47]} 4. Bb5 {[%clk 0:02:57]}  Bd6 {[%clk 0:02:47]} 5. Na3 {[%clk 0:02:57]}  a6 {[%clk 0:02:46]} 6. Bxc6 {[%clk 0:02:55]}  dxc6 {[%clk 0:02:46]} 7. Nc4 {[%clk 0:02:56]}  Qe7 {[%clk 0:02:46]} 8. Ne2 {[%clk 0:02:55]}  c5 {[%clk 0:02:41]} 9. O-O {[%clk 0:02:53]}  O-O {[%clk 0:02:40]} 10. f4 {[%clk 0:02:54]}  exf4 {[%clk 0:02:35]} 11. Nxd6 {[%clk 0:02:53]}  cxd6 {[%clk 0:02:33]} 12. Rxf4 {[%clk 0:02:50]}  Nd5 {[%clk 0:02:25]} 13. Rf3 {[%clk 0:02:44]}  f6 {[%clk 0:02:11]} 14. Rg3 {[%clk 0:02:40]}  Bf5 {[%clk 0:02:01]} 15. a3 {[%clk 0:02:35]}  b5 {[%clk 0:01:55]} 16. Rc1 {[%clk 0:02:32]}  Qf7 {[%clk 0:01:35]} 17. Qf1 {[%clk 0:02:29]}  Ne7 {[%clk 0:01:31]} 18. Nf4 {[%clk 0:02:22]}  Kh8 {[%clk 0:01:21]} 19. Qf3 {[%clk 0:02:12]}  Ra7 {[%clk 0:01:12]} 20. e4 {[%clk 0:02:11]}  Bg6 {[%clk 0:01:09]} 21. d3 {[%clk 0:02:04]}  Nc6 {[%clk 0:01:02]} 22. h4 {[%clk 0:01:57]}  Ne5 {[%clk 0:00:58]} 23. Qe2 {[%clk 0:01:54]}  Qe8 {[%clk 0:00:54]} 24. h5 {[%clk 0:01:51]}  Bf7 {[%clk 0:00:54]} 25. Bxe5 {[%clk 0:01:26]}  fxe5 {[%clk 0:00:47]} 26. Qg4 {[%clk 0:01:25]}  Bg8 {[%clk 0:00:43]} 27. Ng6+ {[%clk 0:01:23]}  hxg6 {[%clk 0:00:14]} 28. hxg6 {[%clk 0:01:23]} 1-0

[Event "December 5 Early 2023"]
[Site "https://www.chess.com"]
[Date "2023.12.05"]
[Round "5"]
[White "Swicarz, Maciej"]
[Black "Clawitter, Craig"]
[Result "1-0"]
[Board "184"]
[TimeControl "180+1"]
[WhiteFideId "1113585"]
[BlackFideId "2023105"]
[WhiteElo "2430"]
[BlackElo "2256"]
[WhiteTeam "POL"]
[BlackTeam "USA"]
[WhiteClock "0:00:45"]
[BlackClock "0:00:08"]

1. e4 {[%clk 0:03:00]}  e6 {[%clk 0:02:57]} 2. d4 {[%clk 0:03:00]}  d5 {[%clk 0:02:57]} 3. e5 {[%clk 0:03:00]}  c5 {[%clk 0:02:57]} 4. Qg4 {[%clk 0:03:01]}  Nc6 {[%clk 0:02:56]} 5. Nf3 {[%clk 0:03:01]}  cxd4 {[%clk 0:02:55]} 6. Bd3 {[%clk 0:03:01]}  Qc7 {[%clk 0:02:46]} 7. Qg3 {[%clk 0:03:01]}  f6 {[%clk 0:02:44]} 8. exf6 {[%clk 0:02:35]}  Qxg3 {[%clk 0:02:45]} 9. f7+ {[%clk 0:02:35]}  Kxf7 {[%clk 0:02:44]} 10. hxg3 {[%clk 0:02:36]}  Nf6 {[%clk 0:02:36]} 11. Bb5 {[%clk 0:02:29]}  Bd7 {[%clk 0:02:15]} 12. Bxc6 {[%clk 0:02:27]}  bxc6 {[%clk 0:02:14]} 13. Nxd4 {[%clk 0:02:22]}  e5 {[%clk 0:02:12]} 14. Nf3 {[%clk 0:02:19]}  Bd6 {[%clk 0:02:05]} 15. b3 {[%clk 0:02:13]}  e4 {[%clk 0:01:46]} 16. Ng5+ {[%clk 0:01:53]}  Kg6 {[%clk 0:01:45]} 17. Nh3 {[%clk 0:01:47]}  Be5 {[%clk 0:01:36]} 18. Nf4+ {[%clk 0:01:47]}  Kf7 {[%clk 0:01:35]} 19. c3 {[%clk 0:01:47]}  a5 {[%clk 0:01:22]} 20. Be3 {[%clk 0:01:42]}  a4 {[%clk 0:01:20]} 21. b4 {[%clk 0:01:42]}  Ng4 {[%clk 0:00:58]} 22. Bd4 {[%clk 0:01:39]}  Bxd4 {[%clk 0:00:58]} 23. cxd4 {[%clk 0:01:40]}  e3 {[%clk 0:00:45]} 24. fxe3 {[%clk 0:01:28]}  Nxe3 {[%clk 0:00:44]} 25. Kd2 {[%clk 0:01:27]}  Nc4+ {[%clk 0:00:40]} 26. Kc3 {[%clk 0:01:27]}  Rae8 {[%clk 0:00:33]} 27. Rf1 {[%clk 0:01:03]}  Re3+ {[%clk 0:00:32]} 28. Nd3+ {[%clk 0:01:03]}  Kg6 {[%clk 0:00:26]} 29. Nd2 {[%clk 0:00:57]}  Bf5 {[%clk 0:00:21]} 30. Rxf5 {[%clk 0:00:55]}  Kxf5 {[%clk 0:00:21]} 31. Nxc4 {[%clk 0:00:54]}  dxc4 {[%clk 0:00:22]} 32. Kxc4 {[%clk 0:00:55]}  Ke4 {[%clk 0:00:20]} 33. Ne5 {[%clk 0:00:50]}  Rd8 {[%clk 0:00:16]} 34. Nxc6 {[%clk 0:00:48]}  Rc8 {[%clk 0:00:16]} 35. b5 {[%clk 0:00:48]}  Rxg3 {[%clk 0:00:14]} 36. Re1+ {[%clk 0:00:48]}  Kf5 {[%clk 0:00:14]} 37. Kd5 {[%clk 0:00:45]}  Rxg2 {[%clk 0:00:08]} 38. Ne7+ {[%clk 0:00:45]} 1-0

[Event "December 5 Early 2023"]
[Site "https://www.chess.com"]
[Date "2023.12.05"]
[Round "5"]
[White "Hon, Eric"]
[Black "Begunov, Konstantin"]
[Result "1-0"]
[Board "185"]
[TimeControl "180+1"]
[WhiteFideId "2097117"]
[BlackFideId "4118510"]
[WhiteElo "2254"]
[BlackElo "2428"]
[WhiteTeam "USA"]
[BlackTeam "RUS"]
[WhiteClock "0:00:12"]
[BlackClock "0:00:00"]

1. e4 {[%clk 0:02:55]}  c5 {[%clk 0:02:59]} 2. Nf3 {[%clk 0:02:55]}  d6 {[%clk 0:02:59]} 3. d4 {[%clk 0:02:55]}  cxd4 {[%clk 0:03:00]} 4. Nxd4 {[%clk 0:02:56]}  Nf6 {[%clk 0:03:00]} 5. Nc3 {[%clk 0:02:57]}  a6 {[%clk 0:03:00]} 6. Be2 {[%clk 0:02:54]}  e5 {[%clk 0:03:00]} 7. Nb3 {[%clk 0:02:52]}  Be7 {[%clk 0:03:01]} 8. O-O {[%clk 0:02:47]}  O-O {[%clk 0:03:01]} 9. Kh1 {[%clk 0:02:37]}  Be6 {[%clk 0:03:00]} 10. Bg5 {[%clk 0:02:20]}  Nbd7 {[%clk 0:02:59]} 11. Bf3 {[%clk 0:02:11]}  b5 {[%clk 0:02:56]} 12. Nd5 {[%clk 0:02:04]}  Bxd5 {[%clk 0:02:23]} 13. Bxf6 {[%clk 0:01:41]}  Bc4 {[%clk 0:01:02]} 14. Bxe7 {[%clk 0:01:35]}  Qxe7 {[%clk 0:01:03]} 15. Re1 {[%clk 0:01:35]}  Nb6 {[%clk 0:01:04]} 16. Nd2 {[%clk 0:01:19]}  Rac8 {[%clk 0:00:57]} 17. b3 {[%clk 0:01:18]}  Be6 {[%clk 0:00:57]} 18. Nf1 {[%clk 0:01:03]}  Rc3 {[%clk 0:00:53]} 19. Re3 {[%clk 0:00:56]}  Rfc8 {[%clk 0:00:51]} 20. Rxc3 {[%clk 0:00:56]}  Rxc3 {[%clk 0:00:52]} 21. Qd2 {[%clk 0:00:51]}  Qc7 {[%clk 0:00:52]} 22. Ne3 {[%clk 0:00:50]}  Qc5 {[%clk 0:00:35]} 23. Rd1 {[%clk 0:00:45]}  Nc8 {[%clk 0:00:35]} 24. h3 {[%clk 0:00:42]}  g6 {[%clk 0:00:35]} 25. Kh2 {[%clk 0:00:42]}  h5 {[%clk 0:00:35]} 26. Rc1 {[%clk 0:00:32]}  Qb4 {[%clk 0:00:19]} 27. Nd1 {[%clk 0:00:23]}  Rxb3 {[%clk 0:00:17]} 28. c3 {[%clk 0:00:19]}  Qa3 {[%clk 0:00:08]} 29. axb3 {[%clk 0:00:19]}  Bxb3 {[%clk 0:00:09]} 30. Ne3 {[%clk 0:00:20]}  Kg7 {[%clk 0:00:07]} 31. Re1 {[%clk 0:00:17]}  Ne7 {[%clk 0:00:05]} 32. Nd5 {[%clk 0:00:17]}  Bxd5 {[%clk 0:00:04]} 33. exd5 {[%clk 0:00:18]}  f5 {[%clk 0:00:04]} 34. g3 {[%clk 0:00:17]}  e4 {[%clk 0:00:04]} 35. Bg2 {[%clk 0:00:18]}  Ng8 {[%clk 0:00:05]} 36. Qd4+ {[%clk 0:00:18]}  Nf6 {[%clk 0:00:05]} 37. Kh1 {[%clk 0:00:16]}  a5 {[%clk 0:00:05]} 38. Rb1 {[%clk 0:00:16]}  b4 {[%clk 0:00:04]} 39. cxb4 {[%clk 0:00:16]}  a4 {[%clk 0:00:05]} 40. Qb2 {[%clk 0:00:15]}  Qd3 {[%clk 0:00:05]} 41. b5 {[%clk 0:00:15]}  a3 {[%clk 0:00:04]} 42. Qa1 {[%clk 0:00:16]}  Kf7 {[%clk 0:00:03]} 43. b6 {[%clk 0:00:16]}  Nd7 {[%clk 0:00:04]} 44. b7 {[%clk 0:00:16]}  Nb8 {[%clk 0:00:04]} 45. Rc1 {[%clk 0:00:17]}  Na6 {[%clk 0:00:03]} 46. Rc8 {[%clk 0:00:14]}  Qb3 {[%clk 0:00:03]} 47. b8=Q {[%clk 0:00:12]}  Nxb8 {[%clk 0:00:02]} 48. Rxb8 {[%clk 0:00:13]}  Qxb8 {[%clk 0:00:02]} 49. Qxa3 {[%clk 0:00:13]}  Qb1+ {[%clk 0:00:02]} 50. Kh2 {[%clk 0:00:14]}  Qd3 {[%clk 0:00:03]} 51. Qxd6 {[%clk 0:00:13]}  Qe2 {[%clk 0:00:03]} 52. Qe6+ {[%clk 0:00:13]}  Kg7 {[%clk 0:00:04]} 53. d6 {[%clk 0:00:14]}  Qxf2 {[%clk 0:00:04]} 54. d7 {[%clk 0:00:14]}  f4 {[%clk 0:00:04]} 55. Qe5+ {[%clk 0:00:13]}  Kh7 {[%clk 0:00:03]} 56. Qxf4 {[%clk 0:00:13]}  Qd4 {[%clk 0:00:04]} 57. Qf7+ {[%clk 0:00:12]}  Kh6 {[%clk 0:00:04]} 58. Qf8+ {[%clk 0:00:12]}  Kh7 {[%clk 0:00:04]} 59. d8=Q {[%clk 0:00:12]}  Qe5 {[%clk 0:00:03]} 60. Qg8+ {[%clk 0:00:11]}  Kh6 {[%clk 0:00:00]} 61. Qh8+ {[%clk 0:00:12]} 1-0